Cogmind - Beta 10.1 @@@ ROGUE MODE // 2020.10.04 @ 20:19:54 Player: BOTHUNTER Result: Destroyed by G-34 Mercenary with Small Laser Performance ------------- Evolutions (1) 500 Regions Visited (2) 400 Robots Destroyed (6) 30 Value Destroyed (141) 141 Prototype IDs (0) 0 Alien Tech Used (0) 0 Bonus (0) 0 TOTAL SCORE: 1071 Bonus ------- None Cogmind --------- Core Integrity 0/400 Matter 205/300 Energy 91/100 System Corruption 0% Temperature Cool (6) Movement Core (150) Ox2 Location -9/Materials Parts ------- > --- POWER (1) -------- (None) > --- PROPULSION (2) --- (None) > --- UTILITY (4) ------ Small Storage Unit Small Storage Unit > --- WEAPON (2) ------- (None) > --- INVENTORY (8) ---- Aluminum Leg Aluminum Leg Peak State ------------ > --- POWER ------------ Ion Engine > --- PROPULSION ------- Aluminum Leg Aluminum Leg > --- UTILITY ---------- Small Storage Unit Small Storage Unit Targeting Computer > --- WEAPON ----------- Light Assault Rifle Light Assault Rifle > --- INVENTORY -------- Aluminum Leg Wheel [Rating: 8] Favorites ----------- Power Ion Engine Engine Ion Engine Propulsion Aluminum Leg Leg Aluminum Leg Wheel Wheel Utility Small Storage Unit Storage Small Storage Unit Processor Targeting Computer Weapon Light Assault Rifle Energy Gun Medium Laser Energy Cannon Particle Cannon Ballistic Gun Light Assault Rifle Special Melee Weapon Datajack Build | -11 -10 -9 ------- Run | Scr Mat Mat Slots Evolved 2 | . . 2 Power . | . . . Propulsion . | . . . Utility 2 | . . 2 Weapon . | . . . Parts Attached 14 | 5 2 7 Power 1 | . . 1 Engine 1 | . . 1 Core . | . . . Reactor . | . . . Propulsion 4 | 2 . 2 Treads . | . . . Leg 3 | 2 . 1 Wheel 1 | . . 1 Hover . | . . . Flight . | . . . Utility 3 | 1 1 1 Device . | . . . Storage 2 | 1 1 . Processor 1 | . . 1 Hackware . | . . . Protection . | . . . Artifact . | . . . Weapon 6 | 2 1 3 Energy Gun 1 | 1 . . Energy Cannon 2 | . . 2 Ballistic Gun 2 | 1 . 1 Ballistic Cannon . | . . . Launcher . | . . . Special Weapon . | . . . Impact Weapon . | . . . Slashing Weapon . | . . . Piercing Weapon . | . . . Special Melee Weapon 1 | . 1 . Unidentified Prototypes . | . . . Parts Lost 5 | . . 5 Power 1 | . . 1 Propulsion 1 | . . 1 Utility . | . . . Weapon 3 | . . 3 Highest Loss Streak 5 | . . 5 Average Slot Usage (%) 74 | . 79 66 Engine 1 | . . 5 Leg 25 | . 28 20 Storage 25 | . 27 22 Processor 2 | . . 5 Energy Gun 4 | . 6 . Ballistic Gun 13 | . 14 12 Special Melee Weapon 1 | . 2 . Naked Turns . | . . . Heaviest Build 15 | 7 11 15 Greatest Support 20 | 20 20 20 Greatest Overweight (x) 3 | . . 3 Average Overweight (x) . | . . . Largest Inventory Capacity 8 | 6 8 8 Average Capacity 7 | 5 7 8 Most Carried 5 | 3 4 5 Average Carried 3 | 1 3 3 Final Capacity 8 | 6 8 8 Final Carried 4 | 3 4 2 Class Distribution -------------------- 100% | Mutant Dominant Class ---------------- Mutant | -10/Materials Mutant | -9/Materials Resources | -11 -10 -9 ----------- Run | Scr Mat Mat Matter Collected 265 | 157 74 34 Remotely . | . . . Salvage Created 131 | . 97 34 Parts 16 | . 14 2 Haulers Intercepted . | . . . Recyclers Shooed . | . . . Parts Field Recycled . | . . . Retrieved Matter . | . . . Parts Self-Destructed . | . . . Prevented . | . . . Kills | -11 -10 -9 ------- Run | Scr Mat Mat Combat Hostiles Destroyed 4 | . 3 1 Guns 4 | . 3 1 Classes Destroyed 4 | . 3 1 Worker 1 | . 1 . Watcher 1 | . 1 . Swarmer 3 | . 3 . Grunt 1 | . . 1 Best Kill Streak 4 | . 4 1 Combat Bots Only 3 | . 3 1 Max Kills in Single Turn 2 | . 2 1 Gunslinging 1 | . 1 . Exploded . | . . . Melee . | . . . Uniques/NPCs Destroyed . | . . . Combat | -11 -10 -9 -------- Run | Scr Mat Mat Damage Taken 1245 | . 104 1141 Core 423 | . 15 408 Absorbed by Shields . | . . . Core Remaining (%) 97 | 100 94 . Volleys Fired 38 | . 25 13 Largest 2 | . 2 2 Hottest 70 | . 70 40 Shots Fired 53 | . 33 20 Gun 53 | . 33 20 Cannon . | . . . Launcher . | . . . Special . | . . . Kinetic 45 | . 25 20 Thermal 8 | . 8 . Explosive . | . . . Electromagnetic . | . . . Robot Hit Streak 7 | . 4 7 Robot Miss Streak 4 | . 4 1 Penetration Max . | . . . Secondary Targets 1 | . 1 . Max Gunslinging Chain 1 | . 1 . Shots Hit Robots 36 | . 19 17 Core Hits 14 | . 10 4 Critical Hits 1 | . . 1 Critical Kills . | . . . Critical Parts Destroyed 1 | . . 1 Melee Attacks 2 | . 2 . Impact . | . . . Slashing . | . . . Piercing . | . . . Sneak Attacks 2 | . 2 . Combat Hostiles . | . . . Follow-up Attacks . | . . . Damage Inflicted 308 | . 161 147 Guns 308 | . 161 147 Cannons . | . . . Explosions . | . . . Melee . | . . . Ramming . | . . . Kinetic 270 | . 123 147 Thermal 38 | . 38 . Explosive . | . . . Electromagnetic . | . . . Impact . | . . . Slashing . | . . . Piercing . | . . . Highest Corruption . | . . . Average Corruption . | . . . Corruption Purged . | . . . Overload Shots . | . . . Overflow Damage . | . . . Projectiles . | . . . Explosions . | . . . Melee . | . . . Knockbacks . | . . . Impact . | . . . Kinetic . | . . . Secondary . | . . . Self-Inflicted Damage . | . . . Shots . | . . . Rammed . | . . . Targets Rammed . | . . . Kicked . | . . . Crushed . | . . . Highest Temperature 40 | . 40 25 Average Temperature 17 | . 19 13 Received Heat Transfer 537 | . 9 528 Siege Activations . | . . . Robots Corrupted . | . . . Combat Hostiles . | . . . Parts Fried . | . . . Impact Corruptions . | . . . Robots Melted . | . . . Combat Hostiles . | . . . Parts Melted . | . . . Heat Transferred 111 | . 111 . Parts Sabotaged . | . . . Parts Stolen . | . . . Parts Stripped . | . . . Power Chain Reactions . | . . . Missiles Intercepted . | . . . Alert | -11 -10 -9 ------- Run | Scr Mat Mat Peak Influence 171 | . 171 153 Initial 72 | . . 72 Average 93 | . 103 98 Maximum Alert Level . | . . . Low Security (%) 100 | 100 100 100 Level 1 . | . . . Level 2 . | . . . Level 3 . | . . . Level 4 . | . . . Level 5 . | . . . High Security . | . . . Max Security . | . . . Squads Dispatched 3 | . . 3 Investigation 3 | . . 3 Extermination . | . . . Reinforcement . | . . . Assault . | . . . Garrison . | . . . Intercept . | . . . Construction Impeded . | . . . Haulers Reinforced . | . . . Stealth | -11 -10 -9 --------- Run | Scr Mat Mat Distress Signals 5 | . 1 4 Communications Jammed . | . . . Distress Signals . | . . . Times Spotted 27 | . 9 18 Peak Tracking Total 13 | . 4 13 Tactical Retreats . | . . . Traps | -11 -10 -9 ------- Run | Scr Mat Mat Traps Triggered 2 | . . 2 Indirectly . | . . . Trap Hack Attempts . | . . . Triggered . | . . . Disarmed . | . . . Reprogrammed . | . . . Reused . | . . . Traps Extracted . | . . . Installed . | . . . Triggered . | . . . Machines | -11 -10 -9 ---------- Run | Scr Mat Mat Machines Disabled . | . . . Max in Single Turn . | . . . Machines Sabotaged 1 | . . 1 Garrisons Compromised . | . . . Overloaded Fab Kills . | . . . Fab Network Shutdowns . | . . . Hacking | -11 -10 -9 --------- Run | Scr Mat Mat Machines Accessed 6 | . 3 3 Terminals 4 | . 2 2 Fabricators . | . . . Repair Stations . | . . . Recycling Units 1 | . 1 . Scanalyzers 1 | . . 1 Garrison Access . | . . . Total Hacks 20 | . 7 13 Successful 14 | . 4 10 Failed 6 | . 3 3 Catastrophic 1 | . . 1 Database Lockouts . | . . . Manual 12 | . 6 6 Terminals 13 | . 6 7 Fabricators . | . . . Repair Stations . | . . . Recycling Units 1 | . 1 . Scanalyzers 6 | . . 6 Garrison Access . | . . . Terminal Hacks 3 | . 1 2 Robot Analysis 2 | . 1 1 Branch Access Points 1 | . . 1 Fabricator Hacks . | . . . Repair Station Hacks . | . . . Recycling Unit Hacks 1 | . 1 . Report Inventory 1 | . 1 . Scanalyzer 5 | . . 5 Insert Component 2 | . . 2 Analyze 3 | . . 3 Garrison Access Hacks . | . . . Unauthorized Hacks 5 | . 2 3 Terminals 5 | . 2 3 Track 2 | . 1 1 Botnet 2 | . 1 1 Sabotage 1 | . . 1 Fabricators . | . . . Repair Stations . | . . . Recycling Units . | . . . Scanalyzers . | . . . Garrison Access . | . . . Data Cores Recovered . | . . . Used . | . . . Hacking Detections 6 | . 3 3 Full Trace Events 2 | . . 2 Feedback Events . | . . . Feedback Blocked . | . . . Robot Schematics Acquired . | . . . Robots Built . | . . . Matter . | . . . Time . | . . . Total Robot Build Rating . | . . . Part Schematics Acquired 2 | . . 2 Parts Built . | . . . Matter . | . . . Time . | . . . Total Part Build Rating . | . . . Parts Repaired . | . . . Time . | . . . Parts Recycled . | . . . Recycled Matter . | . . . Retrieved Matter . | . . . Retrieved Components . | . . . Parts Scanalyzed 2 | . . 2 Part Schematics Acquired 2 | . . 2 Parts Damaged . | . . . Bothacking | -11 -10 -9 ------------ Run | Scr Mat Mat Used RIF Installer . | . . . Robots Hacked 2 | . 2 . Non-combat 2 | . 2 . Combat . | . . . Robot Hacks Applied 2 | . 2 . parse_system 1 | . 1 . no_distress 1 | . 1 . Relay Couplers Released . | . . . Robots Rewired . | . . . Allies Hacked . | . . . Hacks Repelled . | . . . Allies | -11 -10 -9 -------- Run | Scr Mat Mat Total Allies . | . . . Largest Group . | . . . Highest-Rated Group . | . . . Highest-Rated Ally . | . . . Total Orders . | . . . Ally Attacks . | . . . Total Damage . | . . . Kills . | . . . Allies Corrupted . | . . . Allies Melted . | . . . Intel | -11 -10 -9 ------- Run | Scr Mat Mat Robot Analysis Total 2 | . 1 1 Derelict Logs Recovered . | . . . Drone Launches . | . . . Drone Recoveries . | . . . Exploration | -11 -10 -9 ------------- Run | Scr Mat Mat Turns Passed 588 | 48 347 193 Spaces Moved 355 | 40 237 78 Core 17 | 14 . 3 Treads . | . . . Legs 335 | 26 237 72 Wheels 3 | . . 3 Hover . | . . . Flight . | . . . Fastest Speed 50 | 50 120 90 Average Speed 117 | 95 120 121 Slowest Speed 200 | 120 120 200 Overloaded Moves . | . . . Propulsion Burnouts . | . . . Robots Hopped . | . . . Cave-ins Triggered . | . . . Exploration Rate (%) 22 | 3 52 11 Regions Visited 2 Branch Regions . Pre-discovered Areas . | . . . Known Exits Taken . | . . . Unknown Exits Taken 2 | 1 1 . Scrap Searched . | . . . Spaces Dug . | . . . Terrain Destroyed . | . . . Melee . | . . . Projectile . | . . . AOE . | . . . Terrain Rammed . | . . . Walls Destroyed . | . . . Machines Disabled . | . . . Actions | -11 -10 -9 --------- Run | Scr Mat Mat Total 474 | 47 269 158 Wait 60 | . 1 59 Move 353 | 39 236 78 Hop . | . . . Pick Up 5 | 3 1 1 Fast Attach 9 | 5 2 2 Attach 4 | . . 4 Detach . | . . . Swap 1 | . . 1 Drop 2 | . 2 . Fire 38 | . 25 13 Melee 2 | . 2 . Ram . | . . . Kick . | . . . Crush . | . . . Escape Stasis . | . . . Rewire . | . . . Trap . | . . . Miscellaneous . | . . . Route ------- -11/Scrapyard -10/Materials (discovered 2 exits: *Mat / [*Min]) -9/Materials (discovered 2 exits: Min / Sto) History --------- Turn | Location | Event 3 | -11/Scrapyard | Discovered new exit (range 16) 49 | -11/Scrapyard | Entered Materials 257 | -10/Materials | Discovered new exit (range 16) 302 | -10/Materials | Discovered new exit (range 5) 303 | -10/Materials | Build established: Mutant 396 | -10/Materials | Entered another Materials area 396 | -9/Materials | Evolved 2 slots: Utility x2 481 | -9/Materials | Identified exit to Mines 481 | -9/Materials | Identified exit to Storage 576 | -9/Materials | Core integrity fell below 50% 587 | -9/Materials | Core integrity fell below 20% 589 | -9/Materials | Destroyed by G-34 Mercenary with Small Laser Last Messages --------------- 00572_ Triggered Blade Trap. 00572_ Massive razor-sharp blades shoot up from within the floor. 00572_ Aluminum Leg severed. 00572_ U-05 Engineer builds a Wall. 00573_ Ion Engine destroyed. 00575_ Processing Tank disabled. 00576_ Aluminum Leg destroyed. 00576_ U-05 Engineer lays Concrete. 00577_ Acquired Particle Cannon. 00577_ U-05 Engineer lays Concrete. 00581_ Particle Cannon destroyed. 00581_ U-05 Engineer lays Concrete. 00583_ Acquired Particle Cannon. 00583_ U-05 Engineer lays Concrete. 00584_ U-05 Engineer builds a Wall. 00587_ Triggered Blade Trap. 00587_ Massive razor-sharp blades shoot up from within the floor. 00587_ Particle Cannon severed. 00587_ Wheel severed. 00587_ Targeting Computer severed. Map ----- +----------------------------------------------------+ | | | | | ?????????????????????????????????????????????????? | | ########?????????????????????????????????????????? | | # #?????????????????????????????????????????? | | # ! #?????????????????????????????????????????? | | # #?????????????????????????????????????????? | | # "T" #?????????????????????????????????????????? | | # """ #?????????????????????????????????????????? | | # #??????#######????????????????????????????? | | ####+########## #????????????????????????????? | | # * #?##+##??????????????????????? | | # T%!#?# ######?????????????????? | | # w = ###r +?????????????????? | | ####+######+### #????????????# ?????? | | ?# ## ???## ! #??????????? % ??????? | | ?# "" ##?????# o g #?????????? #???????? | | ?# ""S #??????# """Y!gg #????????? ####????? | | ?# "" #??????# """ ######### a ????? | | ?# #??????# """ g s ???? | | ?# #?????+ = g s ???? | | ?########?????## * s #?????????? | | ???????????????##+#### ^ *! g #?????????? | | ???????????????? ??# #?????????? | | ???????????????? ??# #?????????? | | ???????????????? ""??# @] k #?????????? | | ???????????????? ""??# """"" "" "" #?????????? | | ???????????????? ????# """"" """"" #?????????? | | ???????????????? ????# """"" """"" #?????????? | | ?????????????????????# ?#?????????? | | ?????????????????????# ????????????? | | ?????????????????????# !!! ????????????? | | ?????????????????????# !! ???????????? | | ?????????????????????# !! ???????????? | | ?????????????????????######"T"########???????????? | | ?????????????????????????????"???????????????????? | | ?????????????????????????????????????????????????? | | ?????????????????????????????????????????????????? | | ?????????????????????????????????????????????????? | | ?????????????????????????????????????????????????? | | ?????????????????????????????????????????????????? | | ?????????????????????????????????????????????????? | | ?????????????????????????????????????????????????? | | ?????????????????????????????????????????????????? | | ?????????????????????????????????????????????????? | | ?????????????????????????????????????????????????? | | ?????????????????????????????????????????????????? | | ?????????????????????????????????????????????????? | | ?????????????????????????????????????????????????? | | ?????????????????????????????????????????????????? | +----------------------------------------------------+ Best States ------------- Heat Dissipation 28 Energy Generation 10 Energy Capacity 250 Matter Stores 244 Matter Capacity 300 Sight Range 16 Terrain Scan Density 10 Evasion (%) 50 Targeting Accuracy 5 Item Schematics ----------------- Targeting Computer | -9/Materials | Scanalyzed Aluminum Leg | -9/Materials | Scanalyzed Robot Schematics ------------------ None Fabricated ------------ Nothing Alien Tech Used ----------------- None Achievements -------------- None Challenges ------------ None Game ------ Seed WarpBoreRigger Manual? 0 Play Time 00:11:07 Cumulative 99.0 hours Start 2020.10.04 @ 20:12:25 End 2020.10.04 @ 20:19:54 Sessions 1 Manual Loads 0 Difficulty Rogue Special Mode None Game No. 147 Rogue 123 Adventurer 22 Explorer 2 Win Type - Total 1 Types 1/0/0/0/0/0/0/0/0 Lore% 47 Gallery% 52 Achievement% 42 Wizard Run 0 Options --------- ASCII 0 Keyboard 0 Movement Numpad Keybinds 0 Fullscreen 1 Font 14/SmallcapsGlow Map View 84x54 Tactical HUD 1 Map Filters NONE Filters NONE Steam 1 RUN: 8380972c-be34-4b4f-8b6a-7f870bed2ecc